fUST/lending_fUST_20250925
["ID","MTS","AMOUNT","RATE_DAILY","PERIOD"]
[387609772,1758787841995,-502.67,0.00023186,2]
[387609774,1758787842007,-860.9,0.00023186,2]
[387609776,1758787842017,-480.0,0.00023186,2]
[387609778,1758787842027,-519.21,0.00023187,2]
[387609780,1758787842036,-480.0,0.00023187,2]
[387609790,1758787842046,-480.0,0.00023187,2]
[387609792,1758787842135,-151.0,0.000232,6]
[387609794,1758787842144,-500.0,0.0002321,2]
[387609796,1758787842154,-500.0,0.00023239,2]
[387609798,1758787842164,-482.11086438,0.00023287,2]
[387609800,1758787842173,-800.81,0.00023287,2]
[387609802,1758787842182,-1690.81519414,0.0002332,2]
[387609804,1758787842192,-181.98399385,0.00023348,2]
[387609806,1758787842202,-3000.0,0.000234,2]
[387609808,1758787842212,-3000.0,0.0002341,2]
[387609810,1758787842221,-3000.0,0.0002342,2]
[387609812,1758787842230,-731.62021286,0.00023425,2]
[387609814,1758787842240,-3000.0,0.0002343,2]
[387609816,1758787842249,-3000.0,0.0002344,2]
[387609818,1758787842259,-3000.0,0.0002345,2]
[387609820,1758787842269,-1818.47,0.00023455,2]
[387609822,1758787842278,-480.0,0.00023456,2]
[387609824,1758787842288,-3000.0,0.0002346,2]
[387609826,1758787842298,-502.67,0.0002346,2]
[387609829,1758787842309,-860.9,0.0002346,2]
[387609831,1758787842318,-480.0,0.0002346,2]
[387609832,1758787842328,-519.21,0.00023461,2]
[387609834,1758787842337,-480.0,0.00023461,2]
[387609837,1758787842347,-480.0,0.00023461,2]
[387609838,1758787842357,-3000.0,0.0002347,2]
[387609841,1758787842367,-489.84047527,0.00023473,2]
[387609843,1758787842377,-500.0,0.00023473,2]
[387609844,1758787842386,-500.0,0.00023473,2]
[387609846,1758787842395,-2500.0,0.00023477,2]
[387609848,1758787842405,-3000.0,0.0002348,2]
[387609850,1758787842414,-3000.0,0.0002349,2]
[387609853,1758787842424,-3000.0,0.000235,2]
[387609855,1758787842434,-3000.0,0.0002351,2]
[387609857,1758787842444,-3000.0,0.0002352,2]
[387609859,1758787842453,-3000.0,0.0002353,2]
[387609861,1758787842463,-3000.0,0.0002354,2]
[387609863,1758787842473,-3000.0,0.0002355,2]
[387609865,1758787842483,-3000.0,0.0002356,2]
[387609867,1758787842492,-3000.0,0.0002357,2]
[387609869,1758787842501,-150.0,0.00023573,2]
[387609871,1758787842511,-3000.0,0.0002358,2]
[387609873,1758787842520,-3000.0,0.0002359,2]
[387609875,1758787842529,-3000.0,0.000236,2]
[387609877,1758787842539,-3000.0,0.0002361,2]
[387609879,1758787842548,-3000.0,0.0002362,2]
[387609881,1758787842558,-3000.0,0.0002363,2]
[387609883,1758787842568,-3000.0,0.0002364,2]
[387609885,1758787842577,-3000.0,0.0002365,2]
[387609887,1758787842587,-3000.0,0.0002366,2]
[387609889,1758787842596,-3000.0,0.0002367,2]
[387609891,1758787842606,-181.98399385,0.00023671,7]
[387609893,1758787842615,-3000.0,0.0002368,2]
[387609895,1758787842624,-3000.0,0.0002369,2]
[387609897,1758787842634,-500.0,0.00023695,2]
[387609899,1758787842644,-3000.0,0.000237,2]
[387609901,1758787842654,-182.56495849,0.00023706,7]
[387609903,1758787842664,-3000.0,0.0002371,2]
[387609905,1758787842673,-3000.0,0.0002372,2]
[387609907,1758787842683,-156.0633223,0.00023723,5]
[387609909,1758787842692,-189.5,0.00023724,4]
[387609911,1758787842701,-1818.47,0.00023729,2]
[387609913,1758787842711,-3000.0,0.0002373,2]
[387609915,1758787842720,-480.0,0.0002373,2]
[387609917,1758787842729,-500.0,0.00023731,2]
[387609919,1758787842739,-502.67,0.00023734,2]
[387609921,1758787842749,-860.9,0.00023734,2]
[387609923,1758787842758,-480.0,0.00023734,2]
[387609925,1758787842767,-519.21,0.00023735,2]
[387609927,1758787842777,-480.0,0.00023735,2]
[387609929,1758787842789,-480.0,0.00023735,2]
[387609931,1758787842799,-4512.711316,0.0002374,2]
[387609933,1758787842808,-500.0,0.00023779,2]
[387609935,1758787842818,-151.0,0.000238,8]
[387609937,1758787842827,-164.17,0.0002384,2]
[387609939,1758787842836,-181.98399385,0.00023994,7]
[387609941,1758787842845,-181.98399385,0.00023994,7]
[387609943,1758787842855,-1818.47,0.00024003,2]
[387609945,1758787842864,-480.0,0.00024004,2]
[387609947,1758787842876,-502.67,0.00024008,2]
[387609949,1758787842890,-860.9,0.00024008,2]
[387609952,1758787842900,-480.0,0.00024008,2]
[387609954,1758787842910,-519.21,0.00024009,2]
[387609956,1758787842921,-480.0,0.00024009,2]
[387609958,1758787842930,-480.0,0.00024009,2]
[387609960,1758787842940,-1000.0,0.00024021,2]
[387609962,1758787842949,-517.18989171,0.00024025,2]
[387609963,1758787842960,-182.56495849,0.0002403,7]
[387609965,1758787842969,-182.56495849,0.0002403,7]
[387609967,1758787842978,-182.56495849,0.0002403,7]
[387609970,1758787842987,-173.51998777,0.00024076,5]
[387609972,1758787842997,-1013.166,0.00024076,5]
[387609974,1758787843007,-505.61204843,0.0002409,2]
[387609976,1758787843017,-574.36899308,0.0002412,2]
[387609978,1758787843027,-300.0,0.00024121,2]
[387609980,1758787843036,-847.82771825,0.00024187,2]
[387609982,1758787843045,-350.0,0.00024202,2]
[387609984,1758787843056,-156.92023839,0.00024202,2]
[387609986,1758787843065,-1000.0,0.00024202,2]
[387609988,1758787843075,-1000.0,0.00024202,2]
[387609990,1758787843085,-1000.0,0.00024202,2]
[387609992,1758787843095,-1000.0,0.00024202,2]
[387609994,1758787843104,-1000.0,0.00024202,2]
[387609996,1758787843114,-788.45181069,0.00024202,2]
[387609998,1758787843124,-1818.47,0.00024277,2]
[387610000,1758787843135,-480.0,0.00024278,2]
[387610003,1758787843148,-502.67,0.00024282,2]
[387610005,1758787843161,-860.9,0.00024282,2]
[387610007,1758787843172,-480.0,0.00024282,2]
[387610009,1758787843184,-519.21,0.00024283,2]
[387610012,1758787843195,-480.0,0.00024283,2]
[387610014,1758787843205,-480.0,0.00024283,2]
[387610017,1758787843216,-151.0,0.000243,7]
[387610020,1758787843228,-181.98399385,0.00024317,14]
[387610022,1758787843239,-181.98399385,0.00024317,14]
[387610025,1758787843251,-216.87999059,0.00024329,12]
[387610027,1758787843263,-182.56495849,0.00024353,14]
[387610029,1758787843274,-182.56495849,0.00024353,14]
[387610031,1758787843285,-204.93,0.00024551,2]
[387610035,1758787843297,-1818.47,0.00024551,2]
[387610037,1758787843310,-159.508238,0.00024551,7]
[387610039,1758787843322,-151.0,0.00024551,7]
[387610041,1758787843334,-151.0,0.00024551,7]
[387610044,1758787843345,-151.0,0.00024551,7]
[387610046,1758787843356,-182.81,0.00024552,2]
[387610048,1758787843367,-151.0,0.00024556,7]
[387610050,1758787843378,-151.0,0.00024556,7]
[387610052,1758787843389,-156.313659,0.00024556,7]
[387610054,1758787843400,-151.0,0.00024556,7]
[387610057,1758787843414,-502.67,0.00024556,2]
[387610059,1758787843425,-860.9,0.00024556,2]
[387610061,1758787843437,-480.0,0.00024556,2]
[387610063,1758787843448,-167.318059,0.00024557,7]
[387610065,1758787843459,-151.0,0.00024557,7]
[387610068,1758787843469,-151.0,0.00024557,7]
[387610070,1758787843479,-166.648178,0.00024557,7]
[387610072,1758787843490,-519.21,0.00024557,2]
[387610074,1758787843501,-480.0,0.00024557,2]
[387610076,1758787843512,-480.0,0.00024557,2]
[387610078,1758787843523,-500.0,0.00024568,2]
[387610079,1758787843534,-151.0,0.00024658,2]
[387610080,1758787843546,-306.2739526,0.00024668,2]
[387610081,1758787843560,-1072.62,0.000247,2]
[387610082,1758787843572,-164.17,0.0002476,2]
[387610083,1758787843584,-151.0,0.000248,7]
[387610084,1758787843596,-154.967069,0.000248,7]
[387610085,1758787843608,-151.0,0.000248,7]
[387610086,1758787843619,-317.938597,0.000248,7]
[387610087,1758787843629,-317.938597,0.000248,7]
[387610088,1758787843639,-317.938597,0.000248,7]
[387610089,1758787843649,-317.938597,0.000248,7]
[387610091,1758787843659,-151.0,0.000248,7]
[387610092,1758787843671,-151.0,0.000248,7]
[387610094,1758787843682,-151.0,0.000248,7]
[387610096,1758787843695,-153.124884,0.000248,7]
[387610098,1758787843707,-731.62021286,0.000248,2]
[387610100,1758787843717,-158.885199,0.000248,7]
[387610102,1758787843727,-158.885199,0.000248,7]
[387610105,1758787843738,-158.885199,0.000248,7]
[387610107,1758787843749,-158.885199,0.000248,7]
[387610109,1758787843759,-151.0,0.000248,7]
[387610111,1758787843771,-151.0,0.000248,7]
[387610113,1758787843782,-151.0,0.000248,7]
[387610115,1758787843793,-151.0,0.000248,7]
[387610118,1758787843804,-151.357459,0.000248,7]
[387610121,1758787843815,-505.094748,0.000248,7]
[387610125,1758787843826,-505.094748,0.000248,7]
[387610127,1758787843836,-505.094748,0.000248,7]
[387610129,1758787843848,-505.094748,0.000248,7]
[387610131,1758787843858,-151.0,0.000248,7]
[387610133,1758787843869,-151.0,0.000248,7]
[387610135,1758787843883,-249.059658,0.000248,7]
[387610137,1758787843894,-151.0,0.000248,7]
[387610139,1758787843904,-249.059658,0.000248,7]
[387610141,1758787843915,-151.0,0.000248,7]
[387610144,1758787843927,-151.0,0.000248,7]
[387610146,1758787843938,-151.0,0.000248,7]
[387610148,1758787843949,-249.059658,0.000248,7]
[387610150,1758787843962,-249.059658,0.000248,7]
[387610152,1758787843973,-153.14851591,0.000248,2]
[387610154,1758787843984,-151.0,0.000248,7]
[387610157,1758787843995,-151.0,0.000248,7]
[387610159,1758787844005,-151.0,0.000248,7]
[387610161,1758787844015,-151.0,0.000248,7]
[387610163,1758787844026,-151.0,0.000248,7]
[387610165,1758787844036,-151.0,0.000248,7]
[387610167,1758787844047,-151.0,0.000248,7]
[387610169,1758787844058,-151.0,0.000248,7]
[387610171,1758787844069,-151.0,0.000248,7]
[387610174,1758787844079,-151.20011,0.000248,7]
[387610176,1758787844090,-151.0,0.000248,7]
[387610178,1758787844101,-151.0,0.000248,7]
[387610180,1758787844112,-151.0,0.000248,7]
[387610182,1758787844123,-151.0,0.000248,7]
[387610184,1758787844134,-151.0,0.000248,7]
[387610186,1758787844145,-151.0,0.000248,7]
[387610188,1758787844156,-151.0,0.000248,7]
[387610190,1758787844166,-1818.47,0.00024825,2]
[387610192,1758787844177,-502.67,0.0002483,2]
[387610195,1758787844188,-860.9,0.0002483,2]
[387610197,1758787844199,-480.0,0.0002483,2]
[387610199,1758787844210,-519.21,0.00024831,2]
[387610201,1758787844222,-480.0,0.00024831,2]
[387610203,1758787844233,-480.0,0.00024831,2]
[387610205,1758787844244,-157.193213,0.000249,7]
[387610208,1758787844256,-199.516749,0.000249,7]
[387610220,1758787844368,-151.0,0.000249,7]
[387610223,1758787844382,-151.840992,0.000249,7]
[387610225,1758787844392,-151.0,0.000249,7]
[387610227,1758787844401,-151.0,0.000249,7]
[387610229,1758787844411,-151.0,0.000249,7]
[387610231,1758787844420,-151.0,0.000249,7]
[387610233,1758787844430,-151.0,0.000249,7]
[387610235,1758787844440,-152.174128,0.000249,7]
[387610237,1758787844450,-151.0,0.000249,7]
[387610238,1758787844462,-151.0,0.000249,7]
[387610240,1758787844481,-151.0,0.000249,7]
[387610242,1758787844490,-151.0,0.000249,7]
[387610244,1758787844499,-151.0,0.000249,7]
[387610246,1758787844508,-151.50583,0.000249,7]
[387610248,1758787844518,-151.0,0.000249,7]
[387610250,1758787844527,-151.0,0.000249,7]
[387610252,1758787844537,-151.0,0.000249,7]
[387610254,1758787844546,-151.0,0.000249,7]
[387610256,1758787844555,-151.0,0.000249,7]
[387610258,1758787844564,-151.0,0.000249,7]
[387610260,1758787844573,-151.0,0.000249,7]
[387610262,1758787844582,-151.0,0.000249,7]
[387610264,1758787844591,-151.0,0.000249,7]
[387610266,1758787844600,-151.0,0.000249,7]
[387610268,1758787844610,-151.0,0.000249,7]
[387610270,1758787844619,-151.0,0.000249,7]
[387610272,1758787844628,-155.492607,0.000249,7]
[387610274,1758787844638,-160.0,0.000249,7]
[387610276,1758787844647,-151.0,0.000249,7]
[387610278,1758787844656,-155.269055,0.000249,7]
[387610280,1758787844666,-232.646703,0.000249,7]
[387610282,1758787844675,-153.074967,0.000249,7]
[387610284,1758787844684,-151.0,0.000249,7]
[387610286,1758787844693,-151.0,0.000249,7]
[387610288,1758787844702,-151.0,0.000249,7]
[387610290,1758787844712,-244.631639,0.000249,7]
[387610292,1758787844721,-151.0,0.000249,7]
[387610294,1758787844730,-151.0,0.000249,7]
[387610295,1758787844739,-151.0,0.000249,7]
[387610297,1758787844748,-151.0,0.000249,7]
[387610299,1758787844758,-151.0,0.000249,7]
[387610301,1758787844767,-151.0,0.000249,7]
[387610303,1758787844776,-151.0,0.000249,7]
[387610306,1758787844786,-152.273023,0.000249,7]
[387610308,1758787844796,-152.049928,0.000249,7]
[387610310,1758787844805,-151.0,0.000249,7]
[387610312,1758787844814,-151.0,0.000249,7]
[387610314,1758787844824,-151.0,0.000249,7]
[387610315,1758787844833,-151.0,0.000249,7]
[387610317,1758787844842,-317.938597,0.000249,7]
[387610319,1758787844852,-317.938597,0.000249,7]
[387610322,1758787844862,-317.938597,0.000249,7]
[387610323,1758787844871,-317.938597,0.000249,7]
[387610326,1758787844885,-151.0,0.000249,7]
[387610327,1758787844899,-151.0,0.000249,7]
[387610329,1758787844909,-435761.40489,0.000249,2]
[387610331,1758787844920,-151.0,0.000249,7]
[387610333,1758787844930,-158.885199,0.000249,7]
[387610335,1758787844940,-158.885199,0.000249,7]
[387610337,1758787844949,-158.885199,0.000249,7]
[387610339,1758787844958,-158.885199,0.000249,7]
[387610341,1758787844968,-152.584044,0.000249,7]
[387610343,1758787844978,-151.0,0.000249,7]
[387610345,1758787844987,-151.0,0.000249,7]
[387610347,1758787844997,-151.0,0.000249,7]
[387610349,1758787845008,-505.094748,0.000249,7]
[387610351,1758787845017,-505.094748,0.000249,7]
[387610353,1758787845028,-505.094748,0.000249,7]
[387610355,1758787845037,-505.094748,0.000249,7]
[387610357,1758787845047,-157.062607,0.000249,7]
[387610359,1758787845056,-151.0,0.000249,7]
[387610361,1758787845065,-249.059658,0.000249,7]
[387610363,1758787845075,-151.0,0.000249,7]
[387610365,1758787845085,-249.059658,0.000249,7]
[387610367,1758787845095,-152.333578,0.000249,7]
[387610369,1758787845104,-151.0,0.000249,7]
[387610371,1758787845113,-249.059658,0.000249,7]
[387610373,1758787845123,-249.059658,0.000249,7]
[387610375,1758787845132,-151.0,0.000249,7]
[387610377,1758787845142,-151.0,0.000249,7]
[387610379,1758787845151,-151.0,0.000249,7]
[387610381,1758787845160,-151.0,0.000249,7]
[387610383,1758787845170,-151.0,0.000249,7]
[387610385,1758787845179,-151.0,0.000249,7]
[387610387,1758787845188,-151.0,0.000249,7]
[387610389,1758787845198,-151.0,0.000249,7]
[387610391,1758787845208,-151.0,0.000249,7]
[387610393,1758787845218,-151.0,0.000249,7]
[387610395,1758787845228,-151.0,0.000249,7]
[387610397,1758787845237,-151.0,0.000249,7]
[387610399,1758787845247,-151.0,0.000249,7]
[387610401,1758787845257,-151.0,0.000249,7]
[387610403,1758787845267,-151.0,0.000249,7]
[387610405,1758787845276,-151.0,0.000249,7]
[387610407,1758787845286,-151.0,0.000249,7]
[387610409,1758787845296,-152.94774,0.000249,7]
[387610411,1758787845306,-198.0,0.00024932,2]
[387610413,1758787845316,-1818.47,0.00025099,2]
[387610415,1758787845328,-502.67,0.00025104,2]
[387610417,1758787845342,-860.9,0.00025104,2]
[387610419,1758787845356,-480.0,0.00025104,2]
[387610421,1758787845366,-519.21,0.00025105,2]
[387610423,1758787845376,-480.0,0.00025105,2]
[387610425,1758787845386,-480.0,0.00025105,2]
[387610427,1758787845395,-800.81,0.00025205,4]
[387610429,1758787845405,-847.82771825,0.00025259,3]
[387610431,1758787845415,-179.64071856,0.00025334,2]
[387610433,1758787845424,-189.5,0.00025351,5]
[387610435,1758787845433,-665.43594511,0.00025373,2]
[387610449,1758787845558,-480.0,0.0002072,2]
[387610451,1758787845568,-480.0,0.00020994,2]
[387610453,1758787845577,-480.0,0.00021268,2]
[387610455,1758787845586,-151.0,0.00024551,7]
[387610457,1758787845596,-151.0,0.000249,7]
[387610459,1758787845606,-151.0,0.000249,7]
[387610460,1758787845615,-1153.03405489,0.00025373,2]
[387610462,1758787845625,-502.67,0.00025378,2]
[387610465,1758787845635,-460.89594511,0.00025378,2]
[387610483,1758787845798,-50.22732287,0.00025378,2]
[387610485,1758787845810,-349.77673202,0.00025378,2]
[387610487,1758787845820,-480.0,0.00025378,2]
[387610489,1758787845829,-519.21,0.00025379,2]
[387610491,1758787845839,-203.92123768,0.00025379,2]
[387610494,1758787845849,-629.55386247,0.00025379,2]
[387610495,1758787845858,-200.130584,0.00025567,2]
[387610498,1758787845868,-1818.60783354,0.00025647,2]
[387610500,1758787845878,-502.67699316,0.00025652,2]
[387610502,1758787845891,-861.08,0.00025652,2]
[387610503,1758787845900,-175.44,0.00025652,2]
[387610505,1758787845910,-164.17,0.0002568,7]
[387610508,1758787845920,-714.46414553,0.00025692,2]
[387610510,1758787845930,-2854.99872554,0.00025692,2]
[387610511,1758787845939,-250.0,0.00025868,2]
[387610513,1758787845949,-196.0,0.00026103,2]
[387610515,1758787845961,-168.0,0.00026313,2]
[387610518,1758787845971,-27.92180506,0.00026331,5]
[387610521,1758787846140,-268.48001,0.00021542,2]
[387610522,1758787846156,-211.51999,0.00021542,2]
[387610523,1758787846166,-480.0,0.00021816,2]
[387610524,1758787846175,-480.0,0.0002209,2]
[387610525,1758787846184,-480.0,0.00022364,2]
[387610526,1758787846194,-480.0,0.00022638,2]
[387610527,1758787846204,-480.0,0.00022912,2]
[387610528,1758787846214,-480.0,0.00023186,2]
[387610529,1758787846224,-819.90591319,0.00026331,5]
[387610530,1758787846234,-193.0,0.00026343,2]
[387610531,1758787846243,-273.24,0.00026439,2]
[387610532,1758787846253,-164.17,0.00026601,7]
[387610533,1758787846263,-193.0,0.00026648,2]
[387610534,1758787846274,-193.0,0.00026762,2]
[387610535,1758787846284,-193.0,0.00026816,2]
[387610536,1758787846293,-193.0,0.00026829,7]
[387610537,1758787846303,-189.5,0.00026979,6]
[387610538,1758787846313,-193.0,0.00027007,2]
[387610539,1758787846323,-193.0,0.00027054,2]
[387610541,1758787846332,-800.81,0.00027123,6]
[387610543,1758787846341,-7522.0661948,0.00027208,2]
[387610545,1758787846351,-1072.62,0.000273,2]
[387610547,1758787846360,-162.0,0.0002733,3]
[387610549,1758787846370,-163.04405493,0.0002733,3]
[387610551,1758787846380,-166.0,0.0002733,3]
[387610553,1758787846389,-166.0,0.0002733,3]
[387610555,1758787846399,-174.7882981,0.0002733,3]
[387610557,1758787846409,-166.0,0.0002733,3]
[387610559,1758787846418,-328.0,0.0002733,3]
[387610561,1758787846428,-328.0,0.0002733,3]
[387610563,1758787846438,-328.0,0.0002733,3]
[387610565,1758787846447,-328.0,0.0002733,3]
[387610567,1758787846457,-328.0,0.0002733,3]
[387610569,1758787846466,-328.0,0.0002733,3]
[387610571,1758787846476,-328.0,0.0002733,3]
[387610573,1758787846485,-328.0,0.0002733,3]
[387610575,1758787846497,-328.0,0.0002733,3]
[387610577,1758787846506,-328.0,0.0002733,3]
[387610579,1758787846516,-328.0,0.0002733,3]
[387610581,1758787846526,-274.14879922,0.0002733,3]
[387610583,1758787846537,-172.0,0.0002733,3]
[387610585,1758787846547,-172.91778787,0.0002733,3]
[387610587,1758787846557,-151.0,0.0002733,3]
[387610589,1758787846567,-151.0,0.0002733,3]
[387610591,1758787846576,-151.0,0.0002733,3]
[387610593,1758787846585,-151.0,0.0002733,3]
[387610595,1758787846595,-151.0,0.0002733,3]
[387610597,1758787846604,-151.0,0.0002733,3]
[387610599,1758787846615,-151.0,0.0002733,3]
[387610601,1758787846624,-151.0,0.0002733,3]
[387610603,1758787846633,-151.0,0.0002733,3]
[387610605,1758787846643,-151.0,0.0002733,3]
[387610607,1758787846652,-151.0,0.0002733,3]
[387610609,1758787846661,-151.0,0.0002733,3]
[387610611,1758787846671,-151.0,0.0002733,3]
[387610613,1758787846680,-151.0,0.0002733,3]
[387610614,1758787846689,-151.0,0.0002733,3]
[387610616,1758787846699,-151.0,0.0002733,3]
[387610618,1758787846708,-151.0,0.0002733,3]
[387610620,1758787846717,-151.0,0.0002733,3]
[387610631,1758787846806,-151.0,0.0002733,3]
[387610633,1758787846818,-151.0,0.0002733,3]
[387610635,1758787846827,-151.0,0.0002733,3]
[387610637,1758787846837,-151.0,0.0002733,3]
[387610639,1758787846846,-151.0,0.0002733,3]
[387610641,1758787846856,-151.0,0.0002733,3]
[387610643,1758787846866,-151.0,0.0002733,3]
[387610645,1758787846876,-151.0,0.0002733,3]
[387610647,1758787846887,-151.0,0.0002733,3]
[387610649,1758787846897,-151.0,0.0002733,3]
[387610651,1758787846906,-151.0,0.0002733,3]
[387610653,1758787846915,-151.0,0.0002733,3]
[387610655,1758787846925,-151.0,0.0002733,3]
[387610657,1758787846935,-151.0,0.0002733,3]
[387610659,1758787846944,-151.0,0.0002733,3]
[387610661,1758787846955,-151.0,0.0002733,3]
[387610663,1758787846965,-151.0,0.0002733,3]
[387610665,1758787846974,-151.0,0.0002733,3]
[387610667,1758787846983,-151.0,0.0002733,3]
[387610669,1758787846993,-151.0,0.0002733,3]
[387610671,1758787847002,-151.0,0.0002733,3]
[387610673,1758787847012,-151.0,0.0002733,3]
[387610675,1758787847021,-151.0,0.0002733,3]
[387610677,1758787847031,-151.0,0.0002733,3]
[387610679,1758787847040,-151.0,0.0002733,3]
[387610681,1758787847049,-151.0,0.0002733,3]
[387610683,1758787847058,-151.0,0.0002733,3]
[387610685,1758787847067,-151.0,0.0002733,3]
[387610687,1758787847077,-151.0,0.0002733,3]
[387610688,1758787847086,-151.0,0.0002733,3]
[387610691,1758787847097,-151.0,0.0002733,3]
[387610692,1758787847107,-151.0,0.0002733,3]
[387610694,1758787847116,-151.0,0.0002733,3]
[387610696,1758787847126,-151.0,0.0002733,3]
[387610698,1758787847136,-151.0,0.0002733,3]
[387610701,1758787847145,-151.0,0.0002733,3]
[387610702,1758787847155,-151.0,0.0002733,3]
[387610704,1758787847164,-151.0,0.0002733,3]
[387610706,1758787847174,-151.0,0.0002733,3]
[387610708,1758787847184,-151.0,0.0002733,3]
[387610710,1758787847193,-181.88594414,0.0002733,3]
[387610713,1758787847203,-166.0,0.0002733,3]
[387610715,1758787847213,-166.0,0.0002733,3]
[387610717,1758787847222,-3275.4198164,0.0002734,2]
[387610718,1758787847232,-1690.81519414,0.0002734,2]
[387610720,1758787847242,-150.42966953,0.00027397,2]
[387610722,1758787847251,-150.0,0.00027397,5]
[387610724,1758787847261,-160.0,0.000274,3]
[387610726,1758787847270,-192.625635,0.000274,2]
[387610728,1758787847280,-847.82771825,0.00027403,7]
[387610731,1758787847289,-196.0,0.00027434,2]
[387610732,1758787847299,-408.64526688,0.0002744,2]
[387610734,1758787847311,-4082.22479555,0.0002744,2]
[387610738,1758787847336,-113.06274969,0.0002744,2]
[387610741,1758787847351,-482.04007331,0.0002744,2]
[387610743,1758787847362,-619.67339358,0.0002744,2]
[387610746,1758787847385,-480.0,0.0002346,2]
[387610748,1758787847395,-236.53931282,0.00023734,2]
[387610750,1758787847406,-114.39068718,0.00023734,2]
[387610752,1758787847416,-7942.20931282,0.0002744,2]
[387610754,1758787847427,-2446.56490206,0.0002744,2]
[387615599,1758787899280,-480.0,0.0001935,2]
[387615604,1758787899318,-480.0,0.00019351,2]
[387615608,1758787899353,-500.0,0.00019351,2]
[387615612,1758787899385,-342.11750942,0.00019351,2]
[387615617,1758787899419,-174.94518108,0.00019351,2]
[387615621,1758787899452,-500.0,0.00019351,2]
[387615626,1758787899487,-500.0,0.00019351,2]
[387615630,1758787899520,-500.0,0.00019351,2]
[387615634,1758787899552,-590.62421223,0.00019351,2]
[387617236,1758787928176,480.0,0.00019351,2]
[387617237,1758787928737,425.31557688,0.0001935,2]
[387617238,1758787928838,480.0,0.0001935,2]
[387617239,1758787929873,479.32061766,0.0001935,2]
[387617240,1758787929901,0.67938234,0.0001935,2]
[387617241,1758787930254,480.0,0.00019351,2]
[387617242,1758787934271,487.71868646,0.0001935,2]
[387617243,1758787935145,480.0,0.00019351,2]
[387617245,1758787941293,487.36355892,0.0001935,2]
[387617252,1758787945552,489.14682966,0.0001935,2]
[387617253,1758787947499,480.0,0.0001935,2]
[387617254,1758787951627,480.0,0.0001935,2]
[387617255,1758787955567,480.0,0.0001935,2]
[387617256,1758787957863,485.93860849,0.0001935,2]
[387617257,1758787959078,491.91765334,0.0001935,2]
[387617258,1758787960918,487.31335252,0.0001935,2]
[387617259,1758787966101,480.0,0.0001935,2]
[387617260,1758787967930,442.60662754,0.0001935,2]
[387617261,1758787969079,480.0,0.0001935,2]
[387617262,1758787971377,485.64248376,0.0001935,2]
[387617263,1758787972884,480.0,0.0001935,2]
[387617264,1758787974013,260.28729255,0.00019352,2]
[387617265,1758787977600,480.0,0.00019351,2]
[387617266,1758787979120,480.0,0.0001935,2]